[Event "*** Titled Tuesday 3|2 Blitz (Early)"]
[Site "Chess.com"]
[Date "2017.01.03"]
[Round "4"]
[White "Mischuk_D"]
[Black "Pierrebl"]
[Result "1-0"]
[WhiteElo "2459"]
[BlackElo "2477"]
[TimeControl "180+2"]
[EndTime "11:48:43 PST"]
[Termination "Mischuk_D won on time"]

1. d4 {[%clk 0:03:02]} 1... Nf6 {[%clk 0:03:00]} 2. c4 {[%clk 0:03:02.5]} 2...
g6 {[%clk 0:03:00.7]} 3. Nc3 {[%clk 0:03:03.6]} 3... Bg7 {[%clk 0:03:01.8]} 4.
e4 {[%clk 0:03:04.7]} 4... O-O {[%clk 0:03:03.4]} 5. Be2 {[%clk 0:03:06]} 5...
d6 {[%clk 0:03:04.6]} 6. Be3 {[%clk 0:03:07.2]} 6... Nbd7 {[%clk 0:03:04.7]} 7.
h3 {[%clk 0:03:01.7]} 7... e5 {[%clk 0:03:02.1]} 8. d5 {[%clk 0:03:02.6]} 8...
a5 {[%clk 0:03:03.3]} 9. Nf3 {[%clk 0:03:01.4]} 9... Nh5 {[%clk 0:03:00.8]} 10.
g3 {[%clk 0:03:02.3]} 10... Qe8 {[%clk 0:02:56.3]} 11. Nh4 {[%clk 0:03:02.1]}
11... Nhf6 {[%clk 0:02:56.6]} 12. Qc2 {[%clk 0:03:02.8]} 12... Nc5 {[%clk
0:02:55.4]} 13. O-O-O {[%clk 0:03:02.5]} 13... Nfd7 {[%clk 0:02:54.7]} 14. g4
{[%clk 0:03:03.4]} 14... Na6 {[%clk 0:02:50.1]} 15. a3 {[%clk 0:03:02.4]} 15...
Ndc5 {[%clk 0:02:48.1]} 16. Kb1 {[%clk 0:03:02.9]} 16... Bd7 {[%clk 0:02:45.2]}
17. Nb5 {[%clk 0:03:01.3]} 17... Qe7 {[%clk 0:02:37]} 18. Nf3 {[%clk 0:03:00.9]}
18... f5 {[%clk 0:02:37.1]} 19. gxf5 {[%clk 0:03:00.6]} 19... gxf5 {[%clk
0:02:39]} 20. Nd2 {[%clk 0:02:52.8]} 20... Kh8 {[%clk 0:02:23.6]} 21. Rhg1
{[%clk 0:02:52]} 21... c6 {[%clk 0:02:19.7]} 22. Nc3 {[%clk 0:02:49.6]} 22... f4
{[%clk 0:02:13.8]} 23. Bxc5 {[%clk 0:02:49.9]} 23... Nxc5 {[%clk 0:02:15.7]} 24.
Bg4 {[%clk 0:02:50.6]} 24... Be8 {[%clk 0:02:09.9]} 25. Nb3 {[%clk 0:02:47.7]}
25... Nd7 {[%clk 0:01:53.4]} 26. Bf5 {[%clk 0:02:41.9]} 26... a4 {[%clk
0:01:52.4]} 27. Nc1 {[%clk 0:02:39.4]} 27... Bh5 {[%clk 0:01:51.4]} 28. Bg4
{[%clk 0:02:37.8]} 28... Bg6 {[%clk 0:01:52.1]} 29. f3 {[%clk 0:02:38.4]} 29...
Nc5 {[%clk 0:01:53]} 30. Nd3 {[%clk 0:02:37.3]} 30... Nb3 {[%clk 0:01:52.7]} 31.
Qf2 {[%clk 0:02:37]} 31... Nd4 {[%clk 0:01:43.9]} 32. h4 {[%clk 0:02:36.2]}
32... b5 {[%clk 0:01:35.3]} 33. dxc6 {[%clk 0:02:33.8]} 33... bxc4 {[%clk
0:01:35.6]} 34. Nb4 {[%clk 0:02:34.3]} 34... Rab8 {[%clk 0:01:19.6]} 35. Ncd5
{[%clk 0:02:34.9]} 35... Qa7 {[%clk 0:01:16.2]} 36. c7 {[%clk 0:02:34.8]} 36...
Rbe8 {[%clk 0:01:13.4]} 37. h5 {[%clk 0:02:35.1]} 37... Bf7 {[%clk 0:01:14.4]}
38. c8=Q {[%clk 0:02:34.5]} 38... Rxc8 {[%clk 0:01:13.3]} 39. Bxc8 {[%clk
0:02:35.2]} 39... Rxc8 {[%clk 0:01:09.4]} 40. h6 {[%clk 0:02:36.1]} 40... Bxh6
{[%clk 0:01:00.8]} 41. Qh4 {[%clk 0:02:36.9]} 41... Bg7 {[%clk 0:00:36.8]} 42.
Rxg7 {[%clk 0:02:36.9]} 42... Kxg7 {[%clk 0:00:38.7]} 43. Qf6+ {[%clk
0:02:37.6]} 43... Kf8 {[%clk 0:00:39.3]} 44. Qxd6+ {[%clk 0:02:34.2]} 44... Kg7
{[%clk 0:00:34.7]} 45. Rg1+ {[%clk 0:02:34.1]} 45... Bg6 {[%clk 0:00:35.7]} 46.
Qf6+ {[%clk 0:02:33.8]} 46... Kg8 {[%clk 0:00:19.7]} 47. Ne7+ {[%clk 0:02:34.3]}
47... Qxe7 {[%clk 0:00:19.4]} 48. Qxe7 {[%clk 0:02:35.2]} 48... Nxf3 {[%clk
0:00:21.3]} 49. Rxg6+ {[%clk 0:02:35.1]} 49... hxg6 {[%clk 0:00:19.2]} 50. Qe6+
{[%clk 0:02:35.9]} 50... Kg7 {[%clk 0:00:21.1]} 51. Qxc8 {[%clk 0:02:36.7]}
51... Nd2+ {[%clk 0:00:20.7]} 52. Kc2 {[%clk 0:02:37.1]} 52... Nxe4 {[%clk
0:00:22.1]} 53. Qe6 {[%clk 0:02:34.7]} 53... Nf6 {[%clk 0:00:15.1]} 54. Qe7+
{[%clk 0:02:34.3]} 54... Kh6 {[%clk 0:00:15.2]} 55. Qxf6 {[%clk 0:02:35]} 1-0

[Event "*** Titled Tuesday 3|2 Blitz (Early)"]
[Site "Chess.com"]
[Date "2017.01.03"]
[Round "4"]
[White "Rozum_Ivan"]
[Black "pedromartinez91"]
[Result "0-1"]
[WhiteElo "2552"]
[BlackElo "2334"]
[TimeControl "180+2"]
[EndTime "11:48:43 PST"]
[Termination "pedromartinez91 won by resignation"]

1. e4 {[%clk 0:03:02]} 1... c5 {[%clk 0:02:53.1]} 2. Nc3 {[%clk 0:02:59.6]} 2...
Nc6 {[%clk 0:02:53.6]} 3. g3 {[%clk 0:02:58.3]} 3... g6 {[%clk 0:02:53.8]} 4.
Bg2 {[%clk 0:02:59.1]} 4... Bg7 {[%clk 0:02:53.6]} 5. d3 {[%clk 0:03:00.5]} 5...
d6 {[%clk 0:02:54.2]} 6. f4 {[%clk 0:03:01.5]} 6... Nf6 {[%clk 0:02:53.5]} 7.
Nf3 {[%clk 0:03:02.4]} 7... O-O {[%clk 0:02:51.3]} 8. h3 {[%clk 0:03:03.5]} 8...
e5 {[%clk 0:02:48.4]} 9. O-O {[%clk 0:03:03.5]} 9... Nh5 {[%clk 0:02:45.2]} 10.
Qe1 {[%clk 0:02:56.1]} 10... exf4 {[%clk 0:02:43.7]} 11. gxf4 {[%clk 0:02:57.1]}
11... Nd4 {[%clk 0:02:42.6]} 12. Nxd4 {[%clk 0:02:52.4]} 12... Bxd4+ {[%clk
0:02:40.8]} 13. Kh1 {[%clk 0:02:52.9]} 13... f5 {[%clk 0:02:32.6]} 14. Ne2
{[%clk 0:02:53.2]} 14... Bg7 {[%clk 0:02:30.3]} 15. Ng3 {[%clk 0:02:54]} 15...
Qh4 {[%clk 0:02:15]} 16. Nxh5 {[%clk 0:02:54.3]} 16... Qxh5 {[%clk 0:02:15.8]}
17. Qg3 {[%clk 0:02:52.4]} 17... Bd7 {[%clk 0:01:50.9]} 18. Bd2 {[%clk
0:02:52.9]} 18... Bc6 {[%clk 0:01:43.3]} 19. Bc3 {[%clk 0:02:49.1]} 19... Bxc3
{[%clk 0:01:40.7]} 20. bxc3 {[%clk 0:02:51]} 20... Rae8 {[%clk 0:01:41.6]} 21.
Rae1 {[%clk 0:02:52]} 21... Qh6 {[%clk 0:01:16.4]} 22. c4 {[%clk 0:02:32.2]}
22... Kh8 {[%clk 0:00:55.3]} 23. Re2 {[%clk 0:02:29.6]} 23... Re7 {[%clk
0:00:42.8]} 24. c3 {[%clk 0:02:30.1]} 24... fxe4 {[%clk 0:00:39.7]} 25. Bxe4
{[%clk 0:02:27.1]} 25... Qg7 {[%clk 0:00:33.6]} 26. Qe1 {[%clk 0:02:21.9]} 26...
Rfe8 {[%clk 0:00:27.6]} 27. Rff2 {[%clk 0:02:22.8]} 27... Qh6 {[%clk 0:00:25.5]}
28. Kh2 {[%clk 0:02:21.7]} 28... Qh4 {[%clk 0:00:22.7]} 29. Re3 {[%clk
0:02:14.5]} 29... Kg7 {[%clk 0:00:17]} 30. Qe2 {[%clk 0:02:08.8]} 30... Bxe4
{[%clk 0:00:17.3]} 31. Rxe4 {[%clk 0:02:07.7]} 31... Rxe4 {[%clk 0:00:18.2]} 32.
dxe4 {[%clk 0:02:09.6]} 32... Rxe4 {[%clk 0:00:19.6]} 33. Qf3 {[%clk 0:02:07.5]}
33... Qe7 {[%clk 0:00:17.2]} 34. f5 {[%clk 0:01:48.9]} 34... Qe5+ {[%clk
0:00:17.9]} 35. Kh1 {[%clk 0:01:48.4]} 35... Qxf5 {[%clk 0:00:19]} 36. Qg3
{[%clk 0:01:45.9]} 36... Qe5 {[%clk 0:00:16.8]} 37. Qf3 {[%clk 0:01:40.3]} 37...
Qf5 {[%clk 0:00:11.5]} 38. Qg3 {[%clk 0:01:30.3]} 38... Re1+ {[%clk 0:00:11.4]}
39. Kg2 {[%clk 0:01:29.4]} 39... Qe4+ {[%clk 0:00:12.2]} 40. Rf3 {[%clk
0:01:27.7]} 40... Re3 {[%clk 0:00:13.1]} 0-1

[Event "*** Titled Tuesday 3|2 Blitz (Early)"]
[Site "Chess.com"]
[Date "2017.01.03"]
[Round "4"]
[White "Goala"]
[Black "FearlessKing64"]
[Result "0-1"]
[WhiteElo "2157"]
[BlackElo "2071"]
[TimeControl "180+2"]
[EndTime "11:48:43 PST"]
[Termination "FearlessKing64 won by checkmate"]

1. d4 {[%clk 0:03:02]} 1... Nf6 {[%clk 0:03:00.2]} 2. c4 {[%clk 0:03:02.4]} 2...
g6 {[%clk 0:03:00.6]} 3. Nc3 {[%clk 0:03:02.8]} 3... d5 {[%clk 0:03:01.6]} 4.
cxd5 {[%clk 0:03:04.7]} 4... Nxd5 {[%clk 0:03:02.6]} 5. e4 {[%clk 0:03:06.3]}
5... Nxc3 {[%clk 0:03:04]} 6. bxc3 {[%clk 0:03:08.2]} 6... Bg7 {[%clk
0:03:05.5]} 7. Be3 {[%clk 0:03:09.9]} 7... c5 {[%clk 0:03:06.5]} 8. Qd2 {[%clk
0:03:11.5]} 8... Qa5 {[%clk 0:03:07.5]} 9. Rb1 {[%clk 0:03:13]} 9... a6 {[%clk
0:03:04.5]} 10. Rc1 {[%clk 0:03:12.6]} 10... cxd4 {[%clk 0:03:02.6]} 11. cxd4
{[%clk 0:03:13.3]} 11... Qxd2+ {[%clk 0:03:03.3]} 12. Kxd2 {[%clk 0:03:14.5]}
12... O-O {[%clk 0:03:04.5]} 13. Nf3 {[%clk 0:03:08.8]} 13... Rd8 {[%clk
0:03:04.2]} 14. Bd3 {[%clk 0:03:08.4]} 14... Bg4 {[%clk 0:03:02.2]} 15. d5
{[%clk 0:03:06.1]} 15... e6 {[%clk 0:03:00.5]} 16. Bb6 {[%clk 0:03:05.5]} 16...
Re8 {[%clk 0:02:52.1]} 17. Rc7 {[%clk 0:02:55]} 17... exd5 {[%clk 0:02:43.8]}
18. exd5 {[%clk 0:02:53.2]} 18... Nd7 {[%clk 0:02:43.6]} 19. Rxb7 {[%clk
0:02:46.5]} 19... Nxb6 {[%clk 0:02:33.3]} 20. Rxb6 {[%clk 0:02:46.8]} 20... Rac8
{[%clk 0:02:23.2]} 21. Rc6 {[%clk 0:02:23]} 21... Rcd8 {[%clk 0:02:14.6]} 22.
Bc4 {[%clk 0:02:08.2]} 22... Re4 {[%clk 0:02:01.4]} 23. Kc2 {[%clk 0:00:34.9]}
23... Bf5 {[%clk 0:01:53.7]} 24. Kb3 {[%clk 0:00:35.8]} 24... Rb8+ {[%clk
0:01:47.9]} 25. Ka4 {[%clk 0:00:36.1]} 25... Bd7 {[%clk 0:01:48]} 26. Rc1 {[%clk
0:00:31.5]} 26... Bf8 {[%clk 0:01:40.1]} 27. Ka5 {[%clk 0:00:29]} 27... Bxc6
{[%clk 0:01:10.8]} 28. dxc6 {[%clk 0:00:30.9]} 28... Bb4+ {[%clk 0:00:46.6]} 29.
Kxa6 {[%clk 0:00:28.1]} 29... Re7 {[%clk 0:00:45.5]} 30. Nd4 {[%clk 0:00:16.6]}
30... Kg7 {[%clk 0:00:31.8]} 31. a4 {[%clk 0:00:16]} 31... Bc5 {[%clk
0:00:30.4]} 32. Nb3 {[%clk 0:00:14.5]} 32... Ra7# {[%clk 0:00:30.5]} 0-1

[Event "*** Titled Tuesday 3|2 Blitz (Early)"]
[Site "Chess.com"]
[Date "2017.01.03"]
[Round "4"]
[White "Firebullet"]
[Black "sandropozo"]
[Result "0-1"]
[WhiteElo "2297"]
[BlackElo "2413"]
[TimeControl "180+2"]
[EndTime "11:48:44 PST"]
[Termination "sandropozo won by checkmate"]

1. d4 {[%clk 0:03:02]} 1... d5 {[%clk 0:02:59.5]} 2. c4 {[%clk 0:03:02.4]} 2...
c6 {[%clk 0:03:00.5]} 3. Nf3 {[%clk 0:03:02.9]} 3... Nf6 {[%clk 0:03:01.5]} 4.
Qb3 {[%clk 0:03:04.6]} 4... dxc4 {[%clk 0:02:56]} 5. Qxc4 {[%clk 0:03:04.8]}
5... Bg4 {[%clk 0:02:57.2]} 6. Nc3 {[%clk 0:03:06.4]} 6... Nbd7 {[%clk
0:02:56.9]} 7. e4 {[%clk 0:03:00.8]} 7... Bxf3 {[%clk 0:02:57.9]} 8. gxf3 {[%clk
0:03:01.5]} 8... e5 {[%clk 0:02:58.8]} 9. Be3 {[%clk 0:02:41.4]} 9... exd4
{[%clk 0:02:32.9]} 10. Bxd4 {[%clk 0:02:41.5]} 10... Bd6 {[%clk 0:02:33.9]} 11.
O-O-O {[%clk 0:02:31.9]} 11... Qe7 {[%clk 0:02:25.8]} 12. Bh3 {[%clk 0:02:24]}
12... Ne5 {[%clk 0:02:01.2]} 13. Qe2 {[%clk 0:02:24.3]} 13... Nh5 {[%clk
0:01:37.9]} 14. Be3 {[%clk 0:02:07.2]} 14... Ng6 {[%clk 0:01:36]} 15. Qd2 {[%clk
0:01:21.3]} 15... Rd8 {[%clk 0:01:24]} 16. Bg4 {[%clk 0:01:18.5]} 16... Nf6
{[%clk 0:01:15.1]} 17. Kb1 {[%clk 0:00:58.4]} 17... O-O {[%clk 0:01:14.4]} 18.
Bg5 {[%clk 0:00:55.1]} 18... h6 {[%clk 0:01:11.1]} 19. Bxf6 {[%clk 0:00:52.5]}
19... Qxf6 {[%clk 0:01:11.4]} 20. Qc2 {[%clk 0:00:52.8]} 20... Be5 {[%clk
0:01:10.1]} 21. Qb3 {[%clk 0:00:47]} 21... b5 {[%clk 0:01:06.9]} 22. Ne2 {[%clk
0:00:46.4]} 22... a5 {[%clk 0:01:01.6]} 23. Ng3 {[%clk 0:00:38.7]} 23... a4
{[%clk 0:01:00.7]} 24. Qb4 {[%clk 0:00:39.7]} 24... Nf4 {[%clk 0:00:49.7]} 25.
Nf5 {[%clk 0:00:37.1]} 25... Nd3 {[%clk 0:00:45.5]} 26. Rxd3 {[%clk 0:00:35.7]}
26... Rxd3 {[%clk 0:00:45.5]} 27. Ne7+ {[%clk 0:00:36.3]} 27... Kh7 {[%clk
0:00:45.9]} 28. Nxc6 {[%clk 0:00:38.2]} 28... Re8 {[%clk 0:00:37.3]} 29. Nxe5
{[%clk 0:00:37.7]} 29... Qxe5 {[%clk 0:00:37.2]} 30. Rc1 {[%clk 0:00:34.2]}
30... Red8 {[%clk 0:00:34.6]} 31. a3 {[%clk 0:00:30.8]} 31... Rb3 {[%clk
0:00:34]} 32. f4 {[%clk 0:00:21.1]} 32... Qxb2# {[%clk 0:00:33]} 0-1

[Event "*** Titled Tuesday 3|2 Blitz (Early)"]
[Site "Chess.com"]
[Date "2017.01.03"]
[Round "4"]
[White "Iball95"]
[Black "Fibrinogen"]
[Result "1-0"]
[WhiteElo "2456"]
[BlackElo "2280"]
[TimeControl "180+2"]
[EndTime "11:48:48 PST"]
[Termination "Iball95 won by resignation"]

1. e4 {[%clk 0:03:02]} 1... e5 {[%clk 0:03:00.5]} 2. Nf3 {[%clk 0:03:02.4]} 2...
Nc6 {[%clk 0:03:00.5]} 3. Nc3 {[%clk 0:03:03.9]} 3... Nf6 {[%clk 0:02:57.8]} 4.
Bb5 {[%clk 0:03:05.3]} 4... Bd6 {[%clk 0:02:48.7]} 5. d3 {[%clk 0:03:02.9]} 5...
a6 {[%clk 0:02:47.7]} 6. Bc4 {[%clk 0:03:02.7]} 6... b5 {[%clk 0:02:43.8]} 7.
Bb3 {[%clk 0:03:02.3]} 7... O-O {[%clk 0:02:44.7]} 8. g4 {[%clk 0:02:59.6]} 8...
Na5 {[%clk 0:02:37.2]} 9. g5 {[%clk 0:02:57.1]} 9... Ne8 {[%clk 0:02:37.4]} 10.
Be3 {[%clk 0:02:51.2]} 10... Nxb3 {[%clk 0:02:34.7]} 11. axb3 {[%clk 0:02:53.1]}
11... c6 {[%clk 0:02:18.1]} 12. h4 {[%clk 0:02:47.7]} 12... f5 {[%clk
0:02:06.9]} 13. gxf6 {[%clk 0:02:28.9]} 13... Nxf6 {[%clk 0:02:05.8]} 14. Rg1
{[%clk 0:02:29.7]} 14... Kh8 {[%clk 0:02:02]} 15. Ne2 {[%clk 0:02:17.2]} 15...
Bc7 {[%clk 0:02:01.5]} 16. Ng3 {[%clk 0:02:15.1]} 16... d5 {[%clk 0:01:59.7]}
17. Qe2 {[%clk 0:02:03.1]} 17... Qe8 {[%clk 0:01:40.4]} 18. Bc5 {[%clk
0:01:57.6]} 18... Rg8 {[%clk 0:01:21]} 19. Ng5 {[%clk 0:01:40.8]} 19... h6
{[%clk 0:01:13.4]} 20. Nf5 {[%clk 0:01:41.6]} 20... Bxf5 {[%clk 0:00:53.2]} 21.
exf5 {[%clk 0:01:41.3]} 21... Qh5 {[%clk 0:00:51.2]} 22. Ne6 {[%clk 0:01:35.2]}
22... Qxe2+ {[%clk 0:00:44.1]} 23. Kxe2 {[%clk 0:01:35.7]} 23... Bd8 {[%clk
0:00:42.3]} 24. Rg6 {[%clk 0:01:35.9]} 24... Nd7 {[%clk 0:00:40.9]} 25. Be3
{[%clk 0:01:26.6]} 25... Nf8 {[%clk 0:00:10.5]} 26. Nxd8 {[%clk 0:01:26.4]}
26... Rxd8 {[%clk 0:00:02.8]} 27. Rxc6 {[%clk 0:01:27.6]} 27... d4 {[%clk
0:00:04.2]} 28. Bd2 {[%clk 0:01:25.2]} 28... Nd7 {[%clk 0:00:04.9]} 29. Rcxa6
{[%clk 0:01:09.4]} 29... Rgf8 {[%clk 0:00:06.2]} 30. Rd6 {[%clk 0:01:07.3]}
30... Nf6 {[%clk 0:00:02.7]} 31. Rxd8 {[%clk 0:01:06]} 31... Rxd8 {[%clk
0:00:04.4]} 32. Ra5 {[%clk 0:01:06.1]} 32... Rc8 {[%clk 0:00:05.8]} 33. Kd1
{[%clk 0:01:00]} 33... Rb8 {[%clk 0:00:06.7]} 34. Bb4 {[%clk 0:00:58.6]} 34...
e4 {[%clk 0:00:07]} 35. Bd6 {[%clk 0:00:56.4]} 35... Rd8 {[%clk 0:00:06.9]} 36.
Be5 {[%clk 0:00:57.7]} 36... Rd5 {[%clk 0:00:08]} 37. Bxf6 {[%clk 0:00:57.4]}
37... gxf6 {[%clk 0:00:09.9]} 38. dxe4 {[%clk 0:00:58.6]} 38... Re5 {[%clk
0:00:11.8]} 39. f3 {[%clk 0:00:59.1]} 1-0

[Event "*** Titled Tuesday 3|2 Blitz (Early)"]
[Site "Chess.com"]
[Date "2017.01.03"]
[Round "4"]
[White "chesswooog"]
[Black "alturas_pacificas"]
[Result "1-0"]
[WhiteElo "2149"]
[BlackElo "2032"]
[TimeControl "180+2"]
[EndTime "11:48:54 PST"]
[Termination "chesswooog won on time"]

1. e4 {[%clk 0:03:01.9]} 1... g6 {[%clk 0:02:58.5]} 2. d4 {[%clk 0:03:02.2]}
2... Bg7 {[%clk 0:02:59.6]} 3. c4 {[%clk 0:02:44]} 3... d6 {[%clk 0:02:59]} 4.
Nc3 {[%clk 0:02:43.4]} 4... Nd7 {[%clk 0:02:56]} 5. f4 {[%clk 0:02:42.4]} 5...
e5 {[%clk 0:02:47]} 6. fxe5 {[%clk 0:02:40.2]} 6... dxe5 {[%clk 0:02:45.8]} 7.
d5 {[%clk 0:02:40.8]} 7... Nh6 {[%clk 0:02:12.5]} 8. Nf3 {[%clk 0:02:28.6]} 8...
O-O {[%clk 0:02:12.5]} 9. Bd3 {[%clk 0:02:22.3]} 9... Nc5 {[%clk 0:02:09.6]} 10.
O-O {[%clk 0:02:21.6]} 10... f6 {[%clk 0:01:45.6]} 11. h3 {[%clk 0:02:10.2]}
11... Nf7 {[%clk 0:01:42.4]} 12. Bc2 {[%clk 0:02:03.4]} 12... a5 {[%clk
0:01:41.3]} 13. Be3 {[%clk 0:02:00.7]} 13... b6 {[%clk 0:01:15.8]} 14. Qd2
{[%clk 0:02:00.7]} 14... Nd6 {[%clk 0:01:05]} 15. b3 {[%clk 0:01:59.5]} 15...
Na6 {[%clk 0:00:51.6]} 16. Rad1 {[%clk 0:01:52.2]} 16... f5 {[%clk 0:00:49]} 17.
Bh6 {[%clk 0:01:47.9]} 17... f4 {[%clk 0:00:48.5]} 18. Bxg7 {[%clk 0:01:48.4]}
18... Kxg7 {[%clk 0:00:50.4]} 19. Nxe5 {[%clk 0:01:49.8]} 19... Bxh3 {[%clk
0:00:44.9]} 20. Rxf4 {[%clk 0:01:46.4]} 20... Bc8 {[%clk 0:00:15.4]} 21. Rxf8
{[%clk 0:01:29.9]} 21... Qxf8 {[%clk 0:00:15.5]} 22. Rf1 {[%clk 0:01:31.2]}
22... Qe7 {[%clk 0:00:15.8]} 23. Nc6 {[%clk 0:01:29.9]} 23... Qh4 {[%clk
0:00:13.3]} 24. e5 {[%clk 0:01:26.7]} 24... Ne8 {[%clk 0:00:10.7]} 25. e6 {[%clk
0:01:23.4]} 25... Bb7 {[%clk 0:00:11.7]} 26. Rf7+ {[%clk 0:01:17.6]} 26... Kg8
{[%clk 0:00:12.6]} 27. Ne7+ {[%clk 0:01:13.6]} 27... Kh8 {[%clk 0:00:14]} 28.
Ne4 {[%clk 0:01:06.6]} 28... Ng7 {[%clk 0:00:08.8]} 29. Qc3 {[%clk 0:01:04.6]}
29... Qh6 {[%clk 0:00:10.3]} 30. g4 {[%clk 0:00:53.5]} 30... Rg8 {[%clk
0:00:10.7]} 31. g5 {[%clk 0:00:53.2]} 31... Qh4 {[%clk 0:00:06.7]} 32. Nxg8
{[%clk 0:00:52.8]} 32... Qg4+ {[%clk 0:00:08]} 33. Kf2 {[%clk 0:00:53.2]} 33...
Qh4+ {[%clk 0:00:06.6]} 34. Kg2 {[%clk 0:00:51.6]} 34... Qg4+ {[%clk 0:00:03.9]}
35. Ng3 {[%clk 0:00:51.6]} 1-0

[Event "*** Titled Tuesday 3|2 Blitz (Early)"]
[Site "Chess.com"]
[Date "2017.01.03"]
[Round "4"]
[White "Tesla37"]
[Black "gumersindo"]
[Result "0-1"]
[WhiteElo "2556"]
[BlackElo "2359"]
[TimeControl "180+2"]
[EndTime "11:49:00 PST"]
[Termination "gumersindo won by resignation"]

1. e4 {[%clk 0:03:02]} 1... e6 {[%clk 0:02:59.4]} 2. d4 {[%clk 0:03:02.6]} 2...
d5 {[%clk 0:03:00.4]} 3. e5 {[%clk 0:03:03.7]} 3... c5 {[%clk 0:03:00.9]} 4. c3
{[%clk 0:03:05.3]} 4... Nc6 {[%clk 0:03:02.4]} 5. Nf3 {[%clk 0:03:06.1]} 5...
Qb6 {[%clk 0:03:03.4]} 6. Be2 {[%clk 0:03:06.5]} 6... Bd7 {[%clk 0:03:03.4]} 7.
O-O {[%clk 0:03:05.3]} 7... Nge7 {[%clk 0:02:59.1]} 8. Na3 {[%clk 0:03:05.9]}
8... cxd4 {[%clk 0:02:54.4]} 9. cxd4 {[%clk 0:03:06.1]} 9... Nf5 {[%clk
0:02:52.2]} 10. Nc2 {[%clk 0:03:07.4]} 10... Be7 {[%clk 0:02:49.8]} 11. g3
{[%clk 0:03:00.4]} 11... h5 {[%clk 0:02:49.3]} 12. h4 {[%clk 0:03:00.4]} 12...
Nb4 {[%clk 0:02:43.5]} 13. Nxb4 {[%clk 0:03:00.2]} 13... Bxb4 {[%clk 0:02:39.6]}
14. a3 {[%clk 0:02:57.6]} 14... Be7 {[%clk 0:02:38.8]} 15. b4 {[%clk 0:02:58.3]}
15... Bb5 {[%clk 0:02:38.7]} 16. Bxb5+ {[%clk 0:02:57.6]} 16... Qxb5 {[%clk
0:02:39.4]} 17. Kg2 {[%clk 0:02:56.2]} 17... Rc8 {[%clk 0:02:35.5]} 18. Bf4
{[%clk 0:02:55.7]} 18... O-O {[%clk 0:02:34.9]} 19. Bg5 {[%clk 0:02:47.5]} 19...
Bxg5 {[%clk 0:02:30.3]} 20. hxg5 {[%clk 0:02:48.3]} 20... g6 {[%clk 0:02:29.3]}
21. Qd2 {[%clk 0:02:45.7]} 21... Rc4 {[%clk 0:02:29.1]} 22. Qf4 {[%clk
0:02:38.1]} 22... Kg7 {[%clk 0:02:22.4]} 23. Rad1 {[%clk 0:02:33.7]} 23... Qa4
{[%clk 0:02:21.7]} 24. Rd3 {[%clk 0:02:27.1]} 24... Qc2 {[%clk 0:02:18.2]} 25.
Rfd1 {[%clk 0:02:26.5]} 25... Rc3 {[%clk 0:02:18.8]} 26. Rxc3 {[%clk 0:02:24.5]}
26... Qxc3 {[%clk 0:02:19.6]} 27. Nh4 {[%clk 0:02:21.8]} 27... Qxa3 {[%clk
0:02:12.8]} 28. Nxf5+ {[%clk 0:02:22.4]} 28... gxf5 {[%clk 0:02:12.5]} 29. Rh1
{[%clk 0:02:13.7]} 29... Rh8 {[%clk 0:01:57.5]} 30. Qd2 {[%clk 0:01:47.4]} 30...
Kg6 {[%clk 0:01:51.6]} 31. b5 {[%clk 0:01:42.5]} 31... Qa4 {[%clk 0:01:50.4]}
32. Qb2 {[%clk 0:01:34.5]} 32... Qc4 {[%clk 0:01:49.7]} 33. b6 {[%clk
0:01:22.6]} 33... axb6 {[%clk 0:01:41.1]} 34. Qxb6 {[%clk 0:01:20.9]} 34... Qd3
{[%clk 0:01:35.4]} 35. Rh4 {[%clk 0:01:08.4]} 35... Rc8 {[%clk 0:01:20.6]} 36.
Qxb7 {[%clk 0:00:55.6]} 36... Rc1 {[%clk 0:01:21]} 37. Qb2 {[%clk 0:00:56.4]}
37... Qf1+ {[%clk 0:01:19.9]} 38. Kf3 {[%clk 0:00:56.8]} 38... Rd1 {[%clk
0:01:18.4]} 39. g4 {[%clk 0:00:16]} 39... Rd3+ {[%clk 0:01:15.4]} 40. Kf4 {[%clk
0:00:16.8]} 40... fxg4 {[%clk 0:01:10.2]} 41. Qc2 {[%clk 0:00:16.6]} 41... Qd1
{[%clk 0:01:05.7]} 0-1

[Event "*** Titled Tuesday 3|2 Blitz (Early)"]
[Site "Chess.com"]
[Date "2017.01.03"]
[Round "4"]
[White "AdrianaNikolova"]
[Black "FrankieJay"]
[Result "1-0"]
[WhiteElo "2274"]
[BlackElo "2280"]
[TimeControl "180+2"]
[EndTime "11:49:13 PST"]
[Termination "AdrianaNikolova won by resignation"]

1. e4 {[%clk 0:03:01.9]} 1... c5 {[%clk 0:03:00]} 2. c3 {[%clk 0:02:59]} 2...
Nf6 {[%clk 0:03:00.2]} 3. e5 {[%clk 0:02:43]} 3... Nd5 {[%clk 0:03:00.8]} 4. d4
{[%clk 0:02:44.9]} 4... cxd4 {[%clk 0:03:01]} 5. Nf3 {[%clk 0:02:46.8]} 5... Nc6
{[%clk 0:03:02.3]} 6. cxd4 {[%clk 0:02:47.4]} 6... d6 {[%clk 0:03:03.1]} 7. Bc4
{[%clk 0:02:47]} 7... Nb6 {[%clk 0:02:58.4]} 8. Bb5 {[%clk 0:02:40.1]} 8... dxe5
{[%clk 0:02:58.7]} 9. Nxe5 {[%clk 0:02:42]} 9... Bd7 {[%clk 0:02:59.8]} 10. Nxd7
{[%clk 0:02:43.5]} 10... Qxd7 {[%clk 0:03:00]} 11. O-O {[%clk 0:02:45.4]} 11...
e6 {[%clk 0:03:00.4]} 12. Nc3 {[%clk 0:02:46.8]} 12... Be7 {[%clk 0:03:00.7]}
13. Be3 {[%clk 0:02:47.2]} 13... O-O {[%clk 0:03:01.8]} 14. Qg4 {[%clk
0:02:48.2]} 14... Kh8 {[%clk 0:02:30.5]} 15. Rad1 {[%clk 0:02:44.5]} 15... Nd5
{[%clk 0:02:26.7]} 16. Bxc6 {[%clk 0:02:03.3]} 16... Qxc6 {[%clk 0:02:23.7]} 17.
Rc1 {[%clk 0:01:49.1]} 17... Qd7 {[%clk 0:02:06.2]} 18. Bg5 {[%clk 0:01:32.2]}
18... Bxg5 {[%clk 0:00:59.1]} 19. Qxg5 {[%clk 0:01:34.1]} 19... Rad8 {[%clk
0:01:00.6]} 20. Ne4 {[%clk 0:01:30.8]} 20... b6 {[%clk 0:00:54.9]} 21. Qg3
{[%clk 0:01:12.8]} 21... h6 {[%clk 0:00:45.6]} 22. Rfd1 {[%clk 0:00:59.2]} 22...
f5 {[%clk 0:00:45.5]} 23. Nd2 {[%clk 0:00:55.6]} 23... f4 {[%clk 0:00:45.8]} 24.
Qg4 {[%clk 0:00:48.8]} 24... g5 {[%clk 0:00:34.1]} 25. Nc4 {[%clk 0:00:34.9]}
25... Kg7 {[%clk 0:00:18.6]} 26. Ne5 {[%clk 0:00:31.8]} 26... Qe8 {[%clk
0:00:19.1]} 27. Re1 {[%clk 0:00:28.7]} 27... Nf6 {[%clk 0:00:20.4]} 28. Qd1
{[%clk 0:00:28]} 28... Rd5 {[%clk 0:00:18.6]} 29. Rc7+ {[%clk 0:00:25.9]} 29...
Kh8 {[%clk 0:00:14.9]} 30. Qd3 {[%clk 0:00:26.6]} 30... Nd7 {[%clk 0:00:13.6]}
31. Ng6+ {[%clk 0:00:24.5]} 31... Kg8 {[%clk 0:00:11.6]} 32. Nxf8 {[%clk
0:00:23.7]} 32... Nxf8 {[%clk 0:00:13.5]} 33. Qe4 {[%clk 0:00:20.5]} 33... a5
{[%clk 0:00:12.5]} 34. Qxd5 {[%clk 0:00:20.7]} 1-0